bitfinex/quotes_ETHUSD_20250730
["timestamp","ask_amount","ask_price","bid_price","bid_amount"]
[1753919174445,39.26386822,3811.2,3811.1,0.04]
[1753919174618,43.33386822,3811.2,3811.1,0.04]
[1753919174824,47.04164073,3811.2,3811.1,0.04]
[1753919176151,47.04164073,3811.2,3810.5,0.001]
[1753919176152,3.55,3811.1,3810.5,0.001]
[1753919176342,38.6832079,3811.0,3810.5,0.001]
[1753919176515,4.3687,3810.9,3810.5,0.001]
[1753919176838,39.33046822,3810.6,3810.5,0.001]
[1753919177039,39.33046822,3810.6,3809.1,1.7028]
[1753919177040,33.55,3810.2,3809.1,1.7028]
[1753919177211,43.64497612,3810.2,3809.1,1.7028]
[1753919177411,15.96973283,3810.2,3809.1,1.7028]
[1753919177647,16.88263283,3810.2,3809.1,1.7028]
[1753919177846,46.88263283,3810.2,3809.1,1.7028]
[1753919178056,41.48906461,3810.2,3809.4,0.8682]
[1753919178215,41.92086461,3810.2,3809.4,0.8682]
[1753919179834,11.00796461,3810.2,3809.7,0.8682]
[1753919180039,41.00796461,3810.2,3809.7,0.8682]
[1753919180733,7.069,3810.2,3810.1,0.4806]
[1753919180958,7.069,3810.2,3810.1,0.04]
[1753919181152,37.619,3810.2,3810.1,0.04]
[1753919181347,38.5165,3810.2,3810.1,0.04]
[1753919181552,39.4294,3810.2,3810.1,0.04]
[1753919181758,41.99966461,3810.2,3810.1,0.04]
[1753919184762,42.78889061,3810.2,3810.1,0.04]
[1753919185364,12.78889061,3810.2,3810.1,0.04]
[1753919185550,42.78889061,3810.2,3810.1,0.04]
[1753919185956,43.03395288,3810.2,3810.1,0.04]
[1753919187044,42.78889061,3810.2,3810.1,0.04]
[1753919187865,42.35709061,3810.2,3810.1,0.04]
[1753919188063,11.10969061,3810.2,3810.1,0.04]
[1753919188266,12.71196822,3810.2,3810.1,0.04]
[1753919188865,13.19306822,3810.2,3810.1,0.04]
[1753919189349,20.28306822,3810.2,3810.1,0.04]
[1753919189766,19.80196822,3810.2,3810.1,0.04]
[1753919191089,3.6812,3810.2,3810.1,0.04]
[1753919191289,3.1312,3810.2,3810.1,0.9082]
[1753919191502,7.1992,3810.2,3810.1,0.9082]
[1753919192155,7.7492,3810.2,3810.1,0.9082]
[1753919192844,3.6812,3810.2,3810.1,0.9082]
[1753919193046,13.07908822,3810.2,3810.1,0.04]
[1753919193279,13.56018822,3810.2,3810.1,0.04]
[1753919194397,43.99198822,3810.2,3810.1,0.04]
[1753919194576,13.99198822,3810.2,3810.1,0.04]
[1753919195064,43.99198822,3810.2,3810.1,0.04]
[1753919197958,44.25488822,3810.2,3810.1,0.04]
[1753919198158,44.89662822,3810.2,3810.1,0.04]
[1753919198619,44.89662822,3810.2,3807.6,0.001]
[1753919198620,3.55,3810.1,3807.6,0.001]
[1753919198902,0.55,3808.8,3808.5,0.8682]
[1753919199082,3.55,3808.6,3808.3,0.8245]
[1753919199285,4.067,3808.5,3808.3,0.8245]
[1753919199606,7.067,3808.5,3808.4,0.8682]
[1753919200200,7.75080199,3808.5,3808.4,0.8682]
[1753919200398,7.74980199,3808.5,3808.4,0.8682]
[1753919202412,7.616,3808.5,3808.4,0.8682]
[1753919204493,7.616,3808.5,3808.4,0.4276]
[1753919204708,7.616,3808.5,3808.4,0.8682]
[1753919205801,3.0,3808.5,3808.4,0.8682]
[1753919206006,7.066,3808.5,3808.4,0.8682]
[1753919207329,3.0,3808.5,3808.4,0.8682]
[1753919207523,0.4674,3809.7,3808.5,0.8251]
[1753919207690,4.066,3809.6,3808.5,0.8251]
[1753919207892,3.55,3809.5,3808.7,0.751]
[1753919208093,3.0,3809.3,3808.8,0.8945]
[1753919208293,3.0,3809.1,3808.7,0.751]
[1753919208494,7.066,3809.0,3808.9,0.8945]
[1753919209016,7.1972,3809.0,3808.9,0.8945]
[1753919209343,3.1312,3809.0,3808.9,0.8945]
[1753919209644,7.065,3809.0,3808.9,1.7135]
[1753919209789,0.13567884,3809.7,3809.0,0.8197]
[1753919209790,0.1312,3809.4,3809.0,0.8197]
[1753919209992,3.0,3809.3,3809.1,0.8945]
[1753919210241,3.0,3809.3,3809.2,1.7142]
[1753919212397,4.18702,3809.3,3808.7,0.8197]
[1753919212549,0.1312,3809.1,3808.7,0.8197]
[1753919212756,4.065,3809.0,3808.8,0.8945]
[1753919212925,4.065,3809.0,3808.9,0.8945]
[1753919213749,4.065,3809.1,3809.0,0.8197]
[1753919214072,0.55,3809.7,3809.0,1.7142]
[1753919214073,4.064,3809.3,3809.0,1.7142]
[1753919214234,4.064,3809.4,3809.1,0.8188]
[1753919214439,0.1312,3809.6,3809.2,0.8945]
[1753919214624,4.064,3809.6,3809.3,1.6624]
[1753919214823,4.064,3809.6,3809.4,0.8945]
[1753919215223,0.1312,3809.8,3809.4,0.8945]
[1753919215718,4.1952,3809.8,3809.5,0.8945]
[1753919216429,4.1952,3809.8,3809.3,0.8991]
[1753919216661,4.1952,3809.8,3809.3,1.353]
[1753919216832,0.1312,3809.8,3809.3,1.353]
[1753919217039,4.9941,3809.7,3809.3,0.8991]
[1753919217233,4.4801,3809.6,3809.0,0.7859]
[1753919217432,0.1312,3809.1,3809.0,0.7859]
[1753919217854,4.063,3809.3,3809.0,1.6804]
[1753919218046,3.0,3809.4,3809.0,0.7859]
[1753919218356,3.0,3809.4,3809.2,0.7859]
[1753919218735,3.0,3809.4,3809.2,1.6804]
[1753919219457,3.0,3809.4,3809.2,1.2398]
[1753919219659,3.0,3809.4,3809.2,0.7859]
[1753919220165,3.4674,3809.4,3809.2,0.7859]
[1753919220323,1.0613,3809.3,3809.0,0.7859]
[1753919220641,0.4674,3809.2,3809.0,0.7859]
[1753919221072,4.063,3809.4,3809.1,0.8945]
[1753919221361,0.1312,3809.7,3809.3,0.7534]
[1753919221657,4.063,3809.7,3809.5,0.7722]
[1753919221866,0.002,3809.8,3809.6,1.0257]
[1753919222159,0.002,3809.8,3809.7,0.7722]
[1753919222565,0.002,3809.8,3809.7,1.6667]
[1753919223260,0.002,3809.8,3809.7,0.7722]
[1753919223724,0.4694,3809.8,3809.7,0.7722]
[1753919223924,0.9321,3809.8,3809.5,0.1312]
[1753919224121,0.4694,3809.8,3809.5,0.9101]
[1753919224327,0.002,3809.8,3809.5,0.9101]
[1753919225123,0.4694,3809.8,3809.5,0.9101]
[1753919225827,0.002,3809.8,3809.5,0.9101]
[1753919226050,0.4674,3809.7,3809.5,0.9101]
[1753919231897,0.4674,3809.6,3809.5,0.1312]
[1753919232171,0.4674,3809.6,3809.3,0.1312]
[1753919232791,0.4674,3809.5,3809.3,0.1312]
[1753919232936,0.6006,3809.8,3809.3,0.1312]
[1753919233137,0.1332,3809.8,3809.4,0.4539]
[1753919233337,0.1332,3809.8,3809.4,0.8945]
[1753919235038,0.002,3809.8,3809.5,0.4539]
[1753919235244,0.002,3809.8,3809.4,0.4406]
[1753919235458,0.002,3809.8,3809.3,0.61135154]
[1753919235661,0.002,3809.8,3809.3,0.15745154]
[1753919235859,0.002,3809.8,3809.4,0.8945]
[1753919236194,0.4694,3809.8,3809.3,0.1312]
[1753919236546,0.4694,3809.8,3809.3,1.0257]
[1753919239391,0.9569,3809.7,3809.2,0.8128]
[1753919239571,1.0881,3809.6,3809.1,0.1312]
[1753919239770,0.9569,3809.5,3809.1,0.1312]
[1753919240302,0.9569,3809.4,3809.1,0.1312]
[1753919240502,0.4678,3809.4,3809.1,0.1312]
[1753919240701,0.4891,3809.3,3809.1,0.1312]
[1753919241865,0.1312,3809.6,3809.1,0.1312]
[1753919242066,0.002,3809.8,3809.3,0.7788]
[1753919242261,0.002,3809.8,3809.4,0.1312]
[1753919242504,0.4911,3809.8,3809.4,0.1312]
[1753919244921,0.4891,3809.7,3809.4,0.1312]
[1753919249651,0.002,3809.8,3809.4,0.1312]
[1753919249798,0.002,3809.8,3809.4,1.0132]
[1753919249997,0.002,3809.8,3809.4,0.1312]
[1753919250214,0.4911,3809.8,3809.4,0.1312]
[1753919250633,0.4891,3809.7,3809.4,0.1312]
[1753919255010,0.002,3809.8,3809.4,0.1312]
[1753919255210,0.002,3809.8,3809.3,0.80505154]
[1753919255211,0.002,3809.8,3809.5,0.882]
[1753919255533,0.002,3809.8,3809.6,0.1312]
[1753919256036,0.002,3809.8,3809.7,0.02624878]
[1753919256555,0.002,3809.8,3809.6,0.1312]
[1753919256922,0.4911,3809.8,3809.6,0.1312]
[1753919257137,0.4891,3809.7,3809.6,0.1312]
[1753919259561,0.002,3809.8,3809.6,0.1312]
[1753919259725,0.4911,3809.8,3809.6,0.1312]
[1753919260651,0.002,3809.8,3809.6,0.1312]
[1753919260963,0.9569,3809.7,3809.6,0.1312]
[1753919261542,0.9569,3809.7,3809.3,4.8338]
[1753919261839,0.9569,3809.6,3809.4,0.1312]
[1753919262049,0.7742,3809.8,3809.4,0.1312]
[1753919262245,0.9569,3809.7,3809.4,0.1312]
[1753919262779,0.9569,3809.6,3809.4,0.1312]
[1753919263194,0.9569,3809.5,3809.4,0.1312]
[1753919263392,0.4678,3809.5,3809.4,0.1312]
[1753919263698,0.9569,3809.5,3809.4,0.1312]
[1753919264390,1.13001,3809.5,3809.1,4.1862]
[1753919264558,0.7742,3809.8,3809.2,0.90825223]
[1753919264559,0.4911,3809.8,3809.2,0.90825223]
[1753919264897,0.4911,3809.8,3809.5,0.1312]
[1753919265395,0.4891,3809.7,3809.5,0.1312]
[1753919265796,0.002,3809.8,3809.6,0.8206]
[1753919266313,0.002,3809.8,3809.7,0.1312]
[1753919268303,0.002,3809.8,3809.7,7.75079942]
[1753919268469,0.002,3809.8,3809.7,9.38005064]
[1753919270315,0.002,3809.8,3809.7,3.50907859]
[1753919270816,0.002,3809.8,3809.7,7.56207859]
[1753919271213,0.4951,3809.8,3809.7,0.8842]
[1753919271404,0.4951,3809.8,3809.7,4.1842]
[1753919272033,0.9334,3809.8,3809.7,4.1842]
[1753919272514,0.9334,3809.8,3809.7,0.1312]
[1753919272719,1.10913,3809.8,3809.7,0.1312]
[1753919273216,1.10913,3809.8,3809.4,4.053]
[1753919273416,0.9314,3809.7,3809.5,0.1312]
[1753919273916,0.17773,3809.8,3809.5,0.1312]
[1753919274121,0.9314,3809.6,3809.5,0.1312]
[1753919275406,0.4931,3809.6,3809.5,0.1312]
[1753919276722,0.002,3809.8,3809.5,0.1312]
[1753919277018,0.002,3809.8,3809.7,0.1312]
[1753919279038,0.002,3809.8,3809.7,4.1832]
[1753919279539,0.4951,3809.8,3809.7,4.1832]
[1753919279936,0.4951,3809.8,3809.7,0.1312]
[1753919280107,0.9334,3809.8,3809.7,0.1312]
[1753919280505,0.9334,3809.8,3809.5,4.1822]
[1753919280904,0.9314,3809.7,3809.5,4.1822]
[1753919281102,0.9314,3809.6,3809.5,4.1822]
[1753919281327,0.002,3809.8,3809.5,4.1822]
[1753919281523,0.002,3809.8,3809.5,4.20845016]
[1753919281838,0.002,3809.8,3809.7,0.1312]
[1753919282547,0.002,3809.8,3809.7,0.15744878]
[1753919283042,0.002,3809.8,3809.7,0.92904878]
[1753919283428,0.002,3809.8,3809.7,5.89752083]
[1753919283637,0.002,3809.8,3809.7,9.39865064]
[1753919286271,0.002,3809.8,3809.7,8.49615064]
[1753919286442,0.002,3809.8,3809.7,9.39865064]
[1753919286772,0.002,3809.8,3809.7,4.9528]
[1753919287572,0.002,3809.8,3809.7,7.57767859]
[1753919287985,0.002,3809.8,3809.7,9.39865064]
[1753919288158,0.002,3809.8,3809.7,13.44865064]
[1753919289786,0.002,3810.2,3809.7,13.44865064]
[1753919289787,0.002,3810.2,3810.1,3.45100302]
[1753919289969,0.002,3810.2,3810.1,12.6259211]
[1753919290289,0.002,3810.2,3810.1,13.50217507]
[1753919290771,0.002,3810.2,3810.1,16.07825952]
[1753919293893,0.002,3810.2,3810.1,19.07825952]
[1753919294363,0.04,3810.9,3810.8,3.45692091]
[1753919294566,0.04,3810.9,3810.8,7.53116211]
[1753919294767,0.04,3810.9,3810.8,8.53862091]
[1753919295153,0.04,3810.9,3810.8,8.09802091]
[1753919295372,0.04,3810.9,3810.8,7.63612091]
[1753919296993,0.04,3810.9,3810.8,8.51412091]
[1753919297174,0.04,3810.9,3810.8,7.63612091]
[1753919297504,0.04,3810.9,3810.8,8.51412091]
[1753919297862,0.04,3810.9,3810.8,11.51412091]
[1753919298070,0.002,3811.6,3811.5,3.45623898]
[1753919298397,0.002,3811.6,3811.5,15.07403186]
[1753919298565,0.002,3811.6,3811.5,15.61639548]
[1753919299095,0.002,3811.6,3811.5,16.05699548]
[1753919299397,0.002,3811.6,3811.5,19.05699548]
[1753919302081,0.002,3811.6,3811.5,14.13199548]
[1753919302605,0.002,3811.6,3811.5,18.17799548]
[1753919308809,0.002,3811.6,3811.5,15.17799548]
[1753919309618,0.002,3811.6,3811.5,18.17799548]
[1753919311124,0.002,3811.6,3811.5,15.17799548]
[1753919312206,0.002,3811.6,3811.5,16.05599548]
[1753919312601,0.002,3811.6,3811.5,15.17799548]
[1753919312806,0.002,3811.6,3811.5,12.59346103]
[1753919313013,0.002,3811.6,3811.5,16.47146103]
[1753919313539,0.04,3811.9,3811.8,2.62343249]
[1753919313697,0.04,3811.9,3811.8,11.65268886]
[1753919314027,0.04,3811.9,3811.8,11.75765454]
[1753919314737,0.04,3811.9,3811.8,14.75765454]
[1753919314941,0.04,3811.9,3811.8,15.57815454]
[1753919315639,0.1312,3813.4,3812.6,2.62288202]
[1753919315640,0.4805,3812.7,3812.6,2.62288202]
[1753919315810,0.4805,3812.7,3812.6,11.62590407]
[1753919316138,0.4805,3812.7,3812.6,11.75710407]
[1753919316537,0.9176,3812.7,3812.6,11.75710407]
[1753919317397,0.7567,3813.4,3812.8,2.62274443]
[1753919317707,0.4771,3812.9,3812.8,6.69097187]
[1753919317910,0.04,3812.9,3812.8,6.79594443]
[1753919318097,0.5205,3812.9,3812.8,6.79594443]
[1753919319741,0.5205,3812.9,3812.8,7.57624443]
[1753919319742,0.04,3812.9,3812.8,7.57624443]
[1753919320717,0.04,3812.9,3812.8,12.53626648]
[1753919321256,0.9576,3812.9,3812.8,6.79594443]
[1753919321548,0.9576,3812.9,3812.8,4.1722]
[1753919322134,0.9576,3812.9,3812.8,0.1312]
[1753919322319,1.7142,3812.9,3812.8,4.1722]
[1753919338310,0.04,3812.9,3812.8,8.48494443]
[1753919338479,0.002,3813.1,3813.0,2.62260687]
[1753919338680,0.002,3813.1,3813.0,8.54325498]
[1753919338885,0.002,3813.1,3813.0,9.40382892]
[1753919339486,0.002,3813.1,3813.0,8.51702892]
[1753919339689,0.002,3813.1,3813.0,9.40382892]
[1753919340414,0.002,3813.1,3813.0,8.51702892]
[1753919340589,0.002,3813.1,3813.0,5.89442205]
[1753919340912,0.002,3813.1,3813.0,6.79180687]
[1753919344821,0.002,3813.1,3813.0,4.1692]
[1753919345024,0.002,3813.1,3813.0,6.81803293]
[1753919345334,0.002,3813.1,3813.0,6.79180687]
[1753919350824,0.4708,3813.1,3813.0,6.79180687]
[1753919351217,0.002,3813.1,3813.0,6.79180687]
[1753919352919,0.002,3813.1,3813.0,7.67860687]
[1753919354727,0.002,3813.1,3813.0,8.47050687]
[1753919357648,0.002,3813.1,3813.0,3.54570687]
[1753919357815,0.002,3813.1,3813.0,7.60693293]
[1753919358015,0.002,3813.1,3813.0,7.58070687]
[1753919359915,0.002,3813.1,3813.0,8.47700687]
[1753919362046,0.002,3813.1,3813.0,11.47700687]
[1753919362453,0.002,3813.1,3813.0,10.58070687]
[1753919371721,0.002,3813.1,3813.0,0.1312]
[1753919371927,1.6849,3813.1,3813.0,0.1312]
[1753919372126,1.6849,3813.1,3813.0,4.1632]
[1753919372462,1.85359,3813.1,3813.0,4.1632]
[1753919372640,1.6849,3813.1,3813.0,4.1632]
[1753919373041,1.6849,3813.1,3813.0,0.1312]
[1753919373237,1.6849,3813.1,3813.0,4.1632]
[1753919374133,0.002,3813.1,3813.0,4.1632]
[1753919374332,0.002,3813.1,3813.0,6.78580687]
[1753919374545,0.002,3813.1,3813.0,4.1632]
[1753919374745,0.002,3813.1,3813.0,6.78580687]
[1753919374932,0.4599,3813.1,3813.0,6.78580687]
[1753919375367,0.4599,3813.1,3813.0,4.1632]
[1753919375545,0.4599,3813.1,3813.0,6.78580687]
[1753919375934,0.4599,3813.1,3813.0,4.1632]
[1753919376136,0.4599,3813.1,3813.0,6.78580687]
[1753919376667,0.002,3813.1,3813.0,9.78580687]
[1753919376835,0.002,3813.1,3813.0,10.68210687]
[1753919377747,0.002,3813.1,3813.0,11.50990687]
[1753919379872,0.002,3813.5,3813.4,2.62233177]
[1753919380175,0.4599,3813.5,3813.4,14.74455382]
[1753919380746,0.002,3813.5,3813.4,14.74455382]
[1753919381071,0.4599,3813.5,3813.4,9.78453177]
[1753919381275,0.4599,3813.5,3813.4,14.74455382]
[1753919382582,0.002,3813.5,3813.4,14.74455382]
[1753919384856,0.002,3813.5,3813.4,15.20025382]
[1753919385569,0.002,3813.5,3813.4,14.74455382]
[1753919385795,0.002,3813.5,3813.4,15.96565382]
[1753919386070,0.002,3813.5,3813.4,16.40625382]
[1753919387400,0.002,3813.5,3813.4,15.50995382]
[1753919388878,0.9237,3813.5,3813.4,7.1612]
[1753919389092,0.9237,3813.5,3813.4,9.78353177]
[1753919394571,0.9237,3813.5,3813.4,7.1612]
[1753919396078,0.9237,3813.5,3813.4,4.1612]
[1753919396478,1.7475,3813.5,3813.4,4.1612]
[1753919401009,0.002,3813.5,3813.4,6.78353177]
[1753919401214,0.002,3813.5,3813.4,11.74355382]
[1753919401900,0.4796,3813.5,3813.4,9.12122205]
[1753919402101,0.9237,3813.5,3813.4,4.1612]
[1753919402315,1.7525,3813.5,3813.4,4.1612]
[1753919404797,0.9237,3813.5,3813.4,4.1612]
[1753919404995,0.4796,3813.5,3813.4,6.78353177]
[1753919405598,0.4796,3813.5,3813.4,4.1612]
[1753919405818,0.9237,3813.5,3813.4,6.78353177]
[1753919409325,0.002,3813.5,3813.4,6.78353177]
[1753919409498,0.4796,3813.5,3813.4,6.78353177]
[1753919411326,0.9237,3813.5,3813.4,6.78353177]
[1753919412536,0.4796,3813.5,3813.4,6.78353177]
[1753919413230,0.002,3813.5,3813.4,6.78353177]
[1753919416721,0.4796,3813.5,3813.4,6.78353177]
[1753919416928,0.002,3813.5,3813.4,6.78353177]
[1753919419729,0.002,3813.5,3813.4,4.1612]
[1753919419932,0.4763,3813.5,3813.4,6.78353177]
[1753919421334,0.9072,3813.5,3813.4,4.1612]
[1753919422451,1.6896,3813.5,3813.4,4.1612]
[1753919423841,1.6896,3813.5,3813.4,4.1562]
[1753919425354,0.822,3813.4,3812.9,0.001]
[1753919425501,0.9532,3813.4,3812.9,4.1572]
[1753919425705,1.7272,3813.3,3812.9,4.1572]
[1753919425938,0.822,3813.1,3812.9,4.1572]
[1753919426313,0.9052,3813.0,3812.9,4.1572]
[1753919427514,1.6958,3813.0,3812.9,0.1322]
[1753919427827,1.6958,3813.0,3812.9,0.001]
[1753919430357,1.827,3813.0,3812.9,0.001]
[1753919430523,2.0097,3813.0,3812.9,0.001]
[1753919432664,2.798133,3813.0,3812.9,0.001]
[1753919435552,2.0097,3813.0,3812.9,0.001]
[1753919435754,2.1409,3813.0,3812.9,0.001]
[1753919436749,0.8158,3813.3,3812.9,4.96102205]
[1753919436934,0.8158,3813.3,3812.9,5.97002205]
[1753919437141,0.8158,3813.3,3813.2,0.1312]
[1753919437543,0.002,3813.5,3813.2,0.1312]
[1753919437741,0.4743,3813.3,3813.2,0.1312]
[1753919437941,0.9052,3813.3,3812.9,0.001]
[1753919438278,0.4309,3813.2,3813.1,0.1312]
[1753919438454,0.9052,3813.2,3813.1,0.1312]
[1753919440642,0.4743,3813.2,3813.1,0.1312]
[1753919440982,0.4329,3813.5,3813.1,0.1312]
[1753919440983,0.4743,3813.4,3813.1,0.1312]
[1753919441346,0.4743,3813.3,3813.1,0.1312]
[1753919442081,0.4309,3813.4,3813.1,0.1312]
[1753919442277,0.4743,3813.2,3813.1,0.1312]
[1753919444255,0.9052,3813.2,3813.1,0.1312]
[1753919445394,0.4743,3813.2,3813.1,0.1312]
[1753919448567,0.9429,3813.2,3813.1,0.1312]
[1753919452376,0.002,3813.5,3813.1,0.1312]
[1753919453019,0.4827,3813.4,3813.1,0.1312]
[1753919453195,0.4706,3813.5,3813.1,0.1312]
[1753919453362,0.4827,3813.3,3813.1,0.1312]
[1753919453694,0.002,3813.5,3813.2,4.96002205]
[1753919453897,0.002,3813.5,3813.3,0.1312]
[1753919454394,0.4847,3813.5,3813.3,0.1312]
[1753919454601,0.002,3813.5,3813.3,0.1312]
[1753919454788,0.002,3813.5,3813.4,3.80823177]
[1753919455399,0.002,3813.5,3813.4,4.24883177]
[1753919458286,0.002,3813.5,3813.4,8.26983177]
[1753919458603,0.002,3813.5,3813.4,7.82923177]
[1753919459594,0.002,3813.5,3813.4,7.39903177]
[1753919459796,0.002,3813.5,3813.4,4.7767]
[1753919460707,0.002,3813.5,3813.4,7.39903177]
[1753919461406,0.002,3813.5,3813.4,4.021]
[1753919462990,0.4847,3813.5,3813.4,4.021]
[1753919463504,0.9533,3813.5,3813.4,4.021]
[1753919464809,0.4847,3813.5,3813.4,4.021]
[1753919466814,0.002,3813.5,3813.4,4.021]
[1753919467682,0.002,3813.5,3813.4,6.64333177]
[1753919467882,0.002,3813.5,3813.4,4.021]
[1753919468102,0.002,3813.5,3813.4,6.64333177]
[1753919469816,0.002,3813.5,3813.4,4.021]
[1753919470188,0.4847,3813.5,3813.4,4.021]
[1753919470988,0.4847,3813.5,3813.4,6.64333177]
[1753919471508,0.4847,3813.5,3813.4,4.021]
[1753919471885,0.4847,3813.5,3813.4,6.64333177]
[1753919472334,0.4847,3813.5,3813.4,4.021]
[1753919474414,0.002,3813.5,3813.4,6.64333177]
[1753919475618,0.002,3813.5,3813.4,7.07353177]
[1753919476220,0.002,3813.5,3813.4,6.64333177]
[1753919476419,0.002,3813.5,3813.4,8.30533177]
[1753919476591,0.002,3813.5,3813.4,7.43453177]
[1753919481213,0.4762,3813.5,3813.4,6.64333177]
[1753919481792,0.002,3813.5,3813.4,6.64333177]
[1753919485306,0.002,3813.5,3813.4,7.09643177]
[1753919486949,0.002,3813.5,3813.4,6.64333177]
[1753919487725,0.002,3813.5,3813.4,7.53703177]
[1753919488057,0.002,3813.5,3813.4,8.32933177]
[1753919488613,0.002,3813.5,3813.4,11.32933177]
[1753919489700,0.042,3813.9,3813.7,3.0]
[1753919489938,0.042,3813.9,3813.8,12.76224261]
[1753919490148,0.042,3813.9,3813.8,12.86722205]
[1753919490629,0.002,3814.1,3813.8,12.86722205]
[1753919490630,0.002,3814.1,3814.0,3.38981924]
[1753919490812,0.002,3814.1,3814.0,10.56323843]
[1753919491006,0.002,3814.1,3814.0,11.43071924]
[1753919494502,0.002,3814.5,3814.3,0.8133]
[1753919494703,0.002,3814.5,3814.4,15.56738278]
[1753919494941,0.002,3814.5,3814.4,16.43486634]
[1753919496002,0.04,3814.9,3814.8,11.35219145]
[1753919496204,0.04,3814.9,3814.8,15.36619145]
[1753919496574,0.4742,3815.6,3815.4,2.62090074]
[1753919496725,0.4742,3815.6,3815.5,6.63488848]
[1753919497053,0.4742,3815.6,3815.5,6.76608848]
[1753919497630,0.9308,3815.8,3815.6,2.6207938]
[1753919497803,0.9308,3815.8,3815.7,11.59477315]
[1753919498003,0.9308,3815.8,3815.7,11.72597315]
[1753919498440,0.9308,3815.8,3815.7,9.10522205]
[1753919499517,0.9308,3815.8,3815.7,11.72597315]
[1753919499705,0.4566,3816.1,3815.7,11.72597315]
[1753919499906,0.4566,3816.1,3815.8,2.62068242]
[1753919500121,0.4566,3816.1,3815.7,9.10522205]
[1753919500122,0.4742,3815.8,3815.7,9.10522205]
[1753919500521,0.4742,3815.8,3815.7,11.72597315]
[1753919500806,0.04,3815.9,3815.8,2.62068242]
[1753919501007,0.04,3815.9,3815.8,5.64688924]
[1753919501226,0.04,3815.9,3815.8,5.62068242]
[1753919501644,0.04,3815.9,3815.8,6.07378242]
[1753919501820,0.04,3815.9,3815.8,5.62068242]
[1753919504104,0.04,3815.9,3815.8,7.26878242]
[1753919505215,0.04,3815.9,3815.8,6.37508242]
[1753919505416,0.04,3815.9,3815.8,10.38708242]
[1753919505741,0.04,3815.9,3815.8,11.28078242]
[1753919507942,0.04,3815.9,3815.8,10.38708242]
[1753919509023,0.04,3815.9,3815.8,6.37508242]
[1753919509224,0.04,3815.9,3815.8,10.38608242]
[1753919511651,0.04,3815.9,3815.8,10.81688242]
[1753919512158,0.04,3815.9,3815.8,10.38608242]
[1753919512653,0.04,3815.9,3815.8,7.7654]
[1753919512852,0.5339,3815.9,3815.8,6.37508242]
[1753919513058,0.5339,3815.9,3815.8,10.38508242]
[1753919513506,0.04,3815.9,3815.8,10.38508242]
[1753919515298,0.04,3815.9,3815.8,6.37508242]
[1753919515499,0.5339,3815.9,3815.8,10.38508242]
[1753919517002,0.5339,3815.9,3815.8,6.37508242]
[1753919517316,0.5339,3815.9,3815.8,10.38508242]
[1753919517608,0.5339,3815.9,3815.8,6.37508242]
[1753919517809,0.5339,3815.9,3815.8,10.38508242]
[1753919518392,0.04,3815.9,3815.8,10.38508242]
[1753919519216,0.5339,3815.9,3815.8,10.38508242]
[1753919520057,0.04,3815.9,3815.8,10.38508242]
[1753919521071,0.04,3815.9,3815.8,7.7644]
[1753919521273,0.5339,3815.9,3815.8,7.7644]
[1753919521518,0.5339,3815.9,3815.8,10.38408242]
[1753919521812,0.04,3815.9,3815.8,3.0]
[1753919522112,0.04,3815.9,3815.8,14.58970447]
[1753919522407,0.5339,3815.9,3815.8,14.58970447]
[1753919522586,0.9922,3815.9,3815.8,14.58970447]
[1753919522957,0.5339,3815.9,3815.8,14.58970447]
[1753919523664,0.5339,3815.9,3815.8,9.62968242]
[1753919523864,0.5339,3815.9,3815.8,14.58970447]
[1753919526010,0.9922,3815.9,3815.8,11.96902205]
[1753919526506,0.9922,3815.9,3815.8,7.96002205]
[1753919527797,0.7738,3815.6,3815.4,0.1312]
[1753919528197,0.7738,3815.6,3815.5,4.008]
[1753919528707,1.726,3815.6,3815.5,4.008]
[1753919533400,0.7705,3815.5,3814.9,0.001]
[1753919533601,0.9017,3815.4,3814.9,0.001]
[1753919533836,0.7705,3815.0,3814.5,0.001]
[1753919534133,0.9351,3814.8,3814.5,4.009]
[1753919534334,0.8039,3814.6,3814.5,4.009]
[1753919534633,1.7561,3814.6,3814.5,4.009]
[1753919539163,1.7561,3814.6,3814.5,0.001]
[1753919539323,1.8873,3814.6,3814.5,0.001]
[1753919539535,2.090547,3814.6,3814.5,0.001]
[1753919540555,1.959347,3814.6,3814.5,0.001]
[1753919541660,2.509347,3814.6,3814.5,0.001]
[1753919543170,2.63795139,3814.6,3814.5,0.001]
[1753919543318,2.08795139,3814.6,3814.5,0.001]
[1753919543525,2.63795139,3814.6,3814.5,0.001]
[1753919550146,2.509347,3814.6,3814.5,0.001]
[1753919550970,2.950947,3814.6,3814.5,0.001]
[1753919551694,3.08340919,3814.6,3814.5,0.001]
[1753919558209,33.32801255,3814.6,3814.5,0.001]
[1753919558376,36.32801255,3814.6,3814.5,0.001]
[1753919560009,36.32807157,3814.6,3814.5,0.001]
[1753919560208,9.84747157,3814.6,3814.5,0.001]
[1753919560508,10.30097157,3814.6,3814.5,0.001]
[1753919561174,6.29297157,3814.6,3814.5,0.001]
[1753919561374,10.30097157,3814.6,3814.5,0.001]
[1753919564078,6.29297157,3814.6,3814.5,0.001]
[1753919564282,4.82587157,3814.6,3814.5,0.001]
[1753919564621,9.84647157,3814.6,3814.5,0.001]